bitfinex/quotes_ETHUSD_20241225
["timestamp","ask_amount","ask_price","bid_price","bid_amount"]
[1735144930914,0.02718497,3445.6,3445.2,1.51766559]
[1735144931881,0.02718497,3445.6,3445.2,0.30353312]
[1735144932163,3.73282,3446.0,3445.2,0.30353312]
[1735144932372,0.02644237,3445.9,3445.5,2.90229]
[1735144932586,1.1925305,3446.6,3445.4,0.831]
[1735144932781,0.02644237,3445.8,3445.4,0.831]
[1735144933070,1.1925305,3446.7,3445.8,3.0]
[1735144933275,1.1925305,3446.7,3446.3,2.9016]
[1735144933456,0.02644237,3446.6,3446.3,2.9016]
[1735144933667,1.1925305,3446.7,3446.4,2.90153]
[1735144934122,3.73157,3447.5,3446.0,9.1110874]
[1735144934321,0.02644237,3447.4,3446.2,3.0]
[1735144934574,3.73157,3447.5,3446.5,2.90148]
[1735144934770,0.02644237,3447.4,3446.5,2.90148]
[1735144935236,3.73157,3447.5,3446.5,2.90148]
[1735144935435,0.8309,3447.5,3446.6,0.290148]
[1735144935643,0.02750049,3447.4,3446.6,0.290148]
[1735144936036,0.8309,3447.5,3446.6,0.290148]
[1735144936240,0.8309,3447.5,3446.6,3.191478]
[1735144936557,0.8309,3447.5,3446.7,0.831]
[1735144936763,0.02750668,3447.4,3446.8,0.4022478]
[1735144938420,2.92824668,3447.4,3446.8,0.4022478]
[1735144938679,2.92824668,3447.4,3446.6,0.290148]
[1735144943453,0.02750668,3447.4,3446.6,0.290148]
[1735144944988,2.92825668,3447.4,3446.6,0.290148]
[1735144945196,2.92825668,3447.4,3446.4,3.73255]
[1735144945993,2.92825668,3447.4,3446.4,2.90155]
[1735144946163,0.55,3447.2,3445.7,0.8325]
[1735144946369,0.55,3447.2,3445.7,3.73463]
[1735144946370,2.90125,3446.8,3445.7,3.73463]
[1735144946565,0.7535,3446.7,3445.7,0.8325]
[1735144946793,2.90152,3446.5,3445.5,2.90231]
[1735144947092,2.90158,3446.4,3445.3,4.94911247]
[1735144947394,2.92896915,3446.4,3445.3,4.94911247]
[1735144947976,2.92896915,3446.4,3445.3,3.73498]
[1735144948858,0.02738915,3446.4,3445.5,0.59535877]
[1735144949059,0.02738915,3446.4,3445.7,2.90214]
[1735144949258,1.9460305,3446.7,3445.9,0.310214]
[1735144949459,0.02572393,3446.3,3446.0,0.8325]
[1735144949670,1.1925305,3446.7,3446.2,2.90174]
[1735144950372,1.1925305,3446.9,3446.0,0.8325]
[1735144950569,1.1925305,3446.9,3446.4,2.9015]
[1735144950787,1.1925305,3446.9,3446.5,0.29015]
[1735144950983,0.03085648,3447.1,3447.0,6.73357]
[1735144951170,1.26655693,3447.3,3447.2,5.9009]
[1735144951369,0.00387518,3447.3,3447.2,8.2791174]
[1735144951587,0.00387518,3447.3,3447.2,9.48038614]
[1735144951782,0.7535,3448.6,3447.2,9.48038614]
[1735144951783,1.19495275,3447.5,3447.4,2.90073]
[1735144952660,0.99495275,3447.5,3447.4,2.90073]
[1735144953679,0.7535,3448.6,3447.4,2.90073]
[1735144953873,0.7535,3448.6,3447.6,3.2107174]
[1735144954199,3.65273,3449.2,3448.0,2.90015]
[1735144954400,0.02718672,3449.1,3448.0,2.90015]
[1735144954601,0.02718672,3449.1,3447.7,2.90048]
[1735144954773,3.65273,3449.2,3448.0,2.90019]
[1735144954978,0.02718672,3449.1,3448.0,2.90019]
[1735144955167,0.55,3449.1,3448.0,2.90019]
[1735144955369,0.02718672,3449.0,3448.0,2.90019]
[1735144956411,0.02718672,3449.0,3447.8,1.00175959]
[1735144956581,0.02718672,3449.0,3448.1,2.90007]
[1735144957112,0.02718672,3449.0,3448.3,2.89995]
[1735144957601,0.02734756,3448.9,3448.1,0.8325]
[1735144957799,0.7535,3449.2,3448.1,0.8325]
[1735144958024,0.02734756,3449.1,3448.2,0.72220141]
[1735144958310,0.02734756,3449.1,3448.4,2.89981]
[1735144958672,0.7535,3449.2,3448.4,2.89981]
[1735144959015,0.7535,3449.2,3448.2,3.62224141]
[1735144959170,0.02759497,3449.1,3448.2,3.62224141]
[1735144961605,0.02759497,3449.1,3448.2,0.72220141]
[1735144961806,0.7535,3449.2,3448.5,2.8998]
[1735144962113,0.02766918,3449.1,3448.5,2.8998]
[1735144967115,2.56071703,3449.0,3448.0,3.48967473]
[1735144967417,0.55,3448.7,3448.0,0.58945473]
[1735144967892,0.02847937,3448.6,3448.0,0.58945473]
[1735144968585,2.89966,3448.7,3448.0,0.58945473]
[1735144968916,0.02847937,3448.6,3448.0,0.58945473]
[1735144970979,0.7695,3448.5,3448.0,0.58945473]
[1735144971181,0.02820603,3448.4,3448.0,0.58945473]
[1735144974451,0.7695,3448.5,3448.0,0.58945473]
[1735144974832,0.02726583,3448.4,3448.0,0.58945473]
[1735144976118,0.02726583,3448.4,3447.6,3.0]
[1735144976348,0.8205,3448.3,3447.5,3.0]
[1735144976666,0.02691952,3448.2,3447.5,3.0]
[1735144977175,0.02691952,3448.2,3447.7,0.58032369]
[1735144977345,0.57691952,3448.2,3446.8,0.8144]
[1735144977535,2.90056,3447.7,3446.8,2.13707499]
[1735144977735,2.90056,3447.7,3446.8,0.8144]
[1735144977936,0.02646189,3447.6,3446.8,0.8144]
[1735144978560,0.02646189,3447.6,3446.7,2.3782174]
[1735144978561,0.55,3447.1,3446.7,0.57078639]
[1735144978754,0.55,3447.1,3446.3,0.59006815]
[1735144978968,0.02623302,3447.0,3446.3,1.56205882]
[1735144979169,0.02623302,3447.0,3446.3,0.97199067]
[1735144982568,0.02623302,3447.0,3446.4,5.2797174]
[1735144982745,0.8205,3447.2,3446.4,5.2797174]
[1735144984872,0.8205,3447.2,3446.2,0.59419165]
[1735144985068,2.90117,3446.9,3446.2,0.59419165]
[1735144985369,0.7789,3446.8,3445.9,0.58875474]
[1735144985577,3.68015,3446.8,3446.0,0.35887547]
[1735144986476,0.7789,3446.8,3446.0,0.35887547]
[1735144986997,0.7789,3446.8,3446.0,2.73709287]
[1735144987484,1.3289,3447.2,3446.1,3.0]
[1735144987680,1.3289,3447.2,3446.4,5.2797774]
[1735144987681,0.7789,3447.2,3446.4,5.2797774]
[1735144987868,0.7789,3447.2,3446.5,0.60903774]
[1735144988069,0.7789,3447.7,3446.7,2.90132]
[1735144988286,0.7789,3447.7,3446.7,37.90132]
[1735144988486,0.7789,3447.7,3446.8,2.84628631]
[1735144988691,0.7789,3447.7,3446.8,0.8318]
[1735144988994,0.7789,3447.7,3446.8,3.73301]
[1735144989619,0.7789,3447.7,3446.9,2.90114]
[1735144989965,0.7789,3447.7,3446.8,0.8318]
[1735144990324,2.90081,3447.4,3446.5,0.60903774]
[1735144990642,2.90081,3447.4,3446.4,0.8318]
[1735144991499,2.90081,3447.4,3446.5,0.58171213]
[1735144991899,0.8083,3447.0,3446.1,3.0]
[1735144992966,0.8083,3447.0,3446.1,5.90175]
[1735144993164,0.8083,3447.0,3446.1,3.0]
[1735144993489,0.8083,3447.0,3446.4,0.58223494]
[1735144993791,0.8083,3447.0,3445.5,0.8318]
[1735144994098,0.8083,3447.0,3445.3,1.21413247]
[1735144994099,0.8083,3445.9,3445.3,1.21413247]
[1735144994299,0.55,3445.8,3445.3,1.21413247]
[1735144994601,4.26072,3445.4,3445.3,1.21413247]
[1735144995167,2.90265,3445.2,3444.2,4.17894155]
[1735144995394,2.90267,3445.1,3444.3,0.68319403]
[1735144996276,1.3583,3445.4,3444.3,0.68319403]
[1735144996277,0.55,3445.3,3444.3,0.68319403]
[1735144996586,2.90289,3444.9,3444.3,0.68319403]
[1735144996792,0.55,3445.1,3444.3,0.68319403]
[1735144996962,2.90311,3444.6,3444.2,0.58659168]
[1735144997169,2.90275,3445.0,3443.9,3.0]
[1735144997392,2.90275,3445.0,3443.7,0.8318]
[1735144997393,2.90292,3444.8,3443.7,0.8318]
[1735144997670,0.55,3444.7,3443.4,3.72363783]
[1735144997879,2.90355,3444.1,3443.5,0.37236378]
[1735144998085,2.90355,3444.1,3443.4,0.8318]
[1735144998300,2.90317,3444.5,3443.5,0.02903603]
[1735144998501,0.8083,3444.6,3443.4,6.62770783]
[1735144999527,2.90326,3444.4,3443.5,3.56861649]
[1735144999716,2.90326,3444.4,3443.6,0.72922543]
[1735145000310,2.90345,3444.2,3443.6,0.72922543]
[1735145001287,2.90327,3444.4,3443.6,0.72922543]
[1735145001488,2.90339,3444.3,3443.6,0.72922543]
[1735145001687,2.90339,3444.3,3443.7,0.80457801]
[1735145002810,2.90325,3444.5,3443.7,0.80457801]
[1735145003700,0.8083,3444.6,3443.7,0.80457801]
[1735145003889,2.90328,3444.4,3443.7,0.80457801]
[1735145004291,2.90336,3444.3,3443.7,0.80457801]
[1735145004801,2.90336,3444.3,3443.4,1.42471684]
[1735145007121,2.90327,3444.4,3443.4,4.42471684]
[1735145008305,0.55,3444.5,3443.4,1.37471684]
[1735145008619,0.8307,3443.9,3443.1,0.01]
[1735145008791,0.55,3443.8,3443.1,0.01]
[1735145008978,2.90423,3443.3,3443.1,0.01]
[1735145010382,4.28497,3443.2,3443.1,0.01]
[1735145010987,4.28497,3443.2,3443.1,1e-05]
[1735145011791,0.8307,3443.2,3443.1,1e-05]
[1735145012718,0.8307,3444.6,3443.1,1e-05]
[1735145013233,2.9036,3444.0,3442.4,3.66273]
[1735145013403,3.73441,3443.9,3442.5,3.95545678]
[1735145013603,3.73441,3443.9,3442.5,0.95545678]
[1735145013604,2.90376,3443.8,3442.5,0.95545678]
[1735145013803,0.8307,3443.7,3442.5,3.86031678]
[1735145014009,0.55,3443.6,3442.5,2.90486]
[1735145014529,3.73455,3443.7,3442.6,2.90472]
[1735145015333,0.8307,3443.7,3442.7,2.90466]
[1735145015836,0.8307,3443.7,3442.5,0.7578]
[1735145016036,0.8307,3443.7,3442.8,2.9046]
[1735145016205,0.8307,3444.2,3442.9,0.29046]
[1735145016598,0.8307,3444.2,3443.3,0.7578]
[1735145016794,2.90256,3445.3,3443.5,3.0]
[1735145016994,3.73305,3445.5,3444.0,3.7578]
[1735145017305,3.73305,3445.5,3444.3,2.90333]
[1735145017606,3.73305,3445.5,3444.3,5.90334]
[1735145017607,0.8307,3445.5,3444.3,5.90334]
[1735145017933,2.90209,3445.8,3444.8,0.7578]
[1735145018138,0.8307,3445.6,3444.6,0.59591074]
[1735145018300,2.90268,3445.1,3444.0,0.7578]
[1735145018646,2.90283,3445.0,3444.0,1.41313078]
[1735145019339,0.8307,3445.6,3444.0,1.41313078]
[1735145019340,0.55,3445.5,3444.0,0.7578]
[1735145019539,2.90243,3445.4,3444.1,2.90343]
[1735145019831,2.90243,3445.4,3444.2,2.90341]
[1735145019832,0.55,3445.3,3444.2,2.90341]
[1735145020165,2.90259,3445.2,3444.0,3.66137]
[1735145020618,2.90259,3445.2,3444.0,4.24215905]
[1735145020852,2.90259,3445.2,3444.1,1.01339969]
[1735145024983,3.45237,3445.5,3444.2,2.93242876]
[1735145025281,3.45237,3445.5,3444.1,1.01339969]
[1735145025282,0.55,3445.3,3444.1,1.01339969]
[1735145025481,0.55,3445.5,3444.1,1.01339969]
[1735145025642,2.90284,3444.9,3444.0,1.33858905]
[1735145026779,2.90287,3444.9,3444.0,1.33858905]
[1735145027841,2.90249,3445.4,3444.0,1.33858905]
[1735145028073,0.55,3445.5,3444.0,1.33858905]
[1735145028289,0.55,3445.3,3444.2,2.90338]
[1735145028461,0.55,3445.3,3444.3,0.72419691]
[1735145030479,0.8307,3445.6,3444.3,0.72419691]
[1735145030687,0.8307,3445.6,3444.0,1.33858905]
[1735145031004,2.9025,3445.4,3444.3,2.90334]
[1735145033211,0.55,3445.5,3444.3,2.37744878]
[1735145033412,3.73295,3445.6,3444.7,0.7725]
[1735145035134,0.55,3445.5,3444.7,0.7725]
[1735145035475,2.90252,3445.3,3444.7,0.7725]
[1735145035780,2.90262,3445.2,3444.7,0.7725]
[1735145036210,3.45238,3445.5,3444.7,0.7725]
[1735145037119,2.90246,3445.4,3444.7,0.7725]
[1735145037334,0.55,3445.5,3444.7,0.7725]
[1735145037618,2.90255,3445.3,3444.7,0.7725]
[1735145039121,0.55,3445.5,3444.7,0.7725]
[1735145039575,2.90191,3446.0,3444.8,3.0]
[1735145039737,2.90191,3446.0,3444.9,0.67300068]
[1735145040079,0.7581,3446.1,3445.2,2.90257]
[1735145040302,2.90177,3446.2,3445.2,2.90257]
[1735145040719,2.90184,3446.1,3445.0,3.67517]
[1735145041218,1.94881002,3446.4,3445.1,2.90259]
[1735145041219,2.90168,3446.3,3445.1,2.90259]
[1735145041422,2.90168,3446.3,3445.2,0.43480907]
[1735145041981,2.90168,3446.3,3445.3,0.7725]
[1735145042181,4.09223002,3446.5,3445.4,2.90238]
[1735145042408,4.09223002,3446.5,3445.5,2.90231]
[1735145042627,1.19071002,3446.5,3445.5,2.37744878]
[1735145042807,1.19071002,3446.8,3445.8,2.902]
[1735145042982,1.19071002,3446.8,3445.9,0.7725]
[1735145043350,1.19071002,3446.8,3446.1,2.90182]
[1735145044133,1.19071002,3446.8,3446.7,5.27876878]
[1735145044311,1.19071002,3447.7,3446.9,2.90115]
[1735145044897,1.19071002,3447.7,3447.1,2.37744878]
[1735145045101,1.19071002,3447.7,3447.2,6.67338]
[1735145046131,0.7581,3448.5,3447.2,6.67338]
[1735145046299,0.7581,3448.5,3447.7,2.90047]
[1735145046634,2.89939,3449.0,3447.5,2.88676609]
[1735145046635,0.7581,3449.0,3447.8,3.67288]
[1735145046789,0.7581,3449.0,3447.8,0.7725]
[1735145047216,1.19071002,3449.1,3448.2,2.90004]
[1735145047650,2.54569251,3449.3,3448.2,2.90004]
[1735145047651,0.7581,3449.3,3448.2,2.90004]
[1735145047949,0.7581,3449.3,3448.3,2.89997]
[1735145048955,0.55,3449.2,3448.3,2.89997]
[1735145049317,0.55,3449.2,3448.1,3.0]
[1735145049620,0.7581,3449.3,3448.4,2.89986]
[1735145049952,0.7581,3449.3,3448.4,2.89983]
[1735145050157,0.0259157,3449.2,3448.4,2.89983]
[1735145052742,0.0259157,3449.2,3448.5,0.02899424]
[1735145052960,0.0259157,3449.2,3448.5,0.7822]
[1735145053120,0.0259157,3449.2,3448.4,3.02899188]
[1735145053121,0.7717,3450.0,3449.2,0.7822]
[1735145053322,0.7717,3450.0,3449.2,3.68134]
[1735145053730,0.7717,3450.0,3449.2,0.7822]
[1735145054046,0.7717,3450.0,3449.2,3.68137]
[1735145054955,0.55,3450.3,3449.2,0.7822]
[1735145055156,0.7717,3450.4,3449.2,0.7822]
[1735145055334,0.7717,3450.4,3449.4,2.89901]
[1735145056659,2.8983,3450.3,3449.3,0.36979536]
[1735145056957,0.55,3450.2,3449.2,0.7822]
[1735145057360,0.55,3450.2,3448.9,0.58310052]
[1735145057361,3.44861,3450.0,3448.9,3.58310052]
[1735145057950,0.55,3449.8,3448.9,0.58310052]
[1735145058552,0.55,3450.0,3449.0,2.89939]
[1735145058860,3.44855,3450.0,3449.1,0.34824905]
[1735145059044,0.55,3450.0,3448.9,0.58310052]
[1735145059217,0.7717,3450.1,3449.0,2.89939]
[1735145059423,0.7717,3450.1,3449.3,2.89912]
[1735145059617,0.7717,3450.1,3449.0,2.8993]
[1735145060861,0.55,3450.0,3448.9,0.58310052]
[1735145061160,0.55,3450.0,3448.9,1.40556485]
[1735145061761,0.55,3449.8,3448.9,1.40556485]
[1735145062340,0.0270231,3449.7,3448.9,1.40556485]
[1735145062539,0.0270231,3449.7,3448.9,0.58310052]
[1735145064773,0.7785,3449.6,3448.9,0.58310052]
[1735145064971,0.55,3449.3,3448.2,3.0]
[1735145065197,0.7785,3449.2,3448.4,0.57249503]
[1735145065350,0.55,3449.1,3448.4,0.57249503]
[1735145065551,0.57731987,3449.1,3448.4,0.57249503]
[1735145065759,2.89965,3448.7,3447.7,0.7902]
[1735145066048,3.67833,3448.5,3447.7,0.65775961]
[1735145066272,0.55,3448.4,3447.5,0.59025852]
[1735145066478,0.57731987,3448.4,3447.5,0.59025852]
[1735145066652,0.55,3448.4,3447.5,0.59025852]
[1735145067065,0.55,3448.2,3447.3,0.90508288]
[1735145067289,2.90016,3448.1,3447.2,0.57609417]
[1735145067582,0.80524477,3448.0,3447.2,0.57609417]
[1735145067789,0.55,3447.9,3446.9,0.7902]
[1735145067943,0.55,3447.7,3446.9,0.7902]
[1735145068148,0.55,3447.7,3446.9,1.159352]
[1735145068381,0.7785,3448.0,3447.0,2.4029191]
[1735145068550,0.7785,3448.0,3447.0,2.9536526]
[1735145068951,0.7785,3448.0,3447.1,3.0]
[1735145069349,0.7785,3448.0,3447.4,2.90072]
[1735145069550,0.02653447,3447.9,3447.7,2.90041]
[1735145069753,3.67813,3448.8,3447.7,2.90041]
[1735145069952,0.02590973,3447.8,3447.7,2.90041]
[1735145070188,3.67813,3448.8,3447.7,2.90041]
[1735145070383,3.67813,3448.8,3447.8,2.84628631]
[1735145070786,3.44966,3448.7,3447.8,2.84628631]
[1735145070993,3.47586048,3448.7,3447.7,2.90041]
[1735145071192,0.7785,3448.6,3447.7,2.90041]
[1735145071569,0.02620048,3448.5,3447.7,2.90041]
[1735145071895,0.02620048,3448.5,3447.5,3.190692]
[1735145072109,0.02620048,3448.5,3447.5,0.290072]
[1735145072321,0.55,3448.3,3447.0,2.9536526]
[1735145072522,0.55,3448.1,3447.0,0.57974212]
[1735145072793,2.90051,3447.7,3447.0,0.57974212]
[1735145072967,0.55,3447.6,3447.0,0.57974212]
[1735145073356,0.02620048,3447.5,3447.0,0.57974212]
[1735145074058,0.7785,3447.4,3446.4,2.90155]
[1735145074262,0.7785,3447.4,3446.4,0.60656605]
[1735145074263,0.55,3447.3,3446.4,0.60656605]
[1735145074472,3.45082,3447.3,3446.4,0.60656605]
[1735145074886,0.02595919,3447.2,3446.4,0.60656605]
[1735145075084,3.45082,3447.3,3446.4,1.19542653]
[1735145075476,0.02571172,3447.2,3446.4,1.19542653]
[1735145076261,0.02571172,3447.2,3446.5,0.6470997]
[1735145076462,0.55,3447.3,3446.5,0.6470997]
[1735145082727,0.55,3447.3,3446.4,0.58886048]
[1735145083025,0.55,3447.1,3446.4,0.58886048]
[1735145083806,0.7627,3447.0,3446.4,0.58886048]
[1735145090241,0.7627,3447.0,3446.4,3.49041048]
[1735145090404,0.7627,3447.0,3446.4,0.58886048]
[1735145091956,0.55,3446.9,3445.8,2.37391048]
[1735145092124,0.55,3446.9,3445.9,0.31484105]
[1735145092341,3.45117,3446.9,3445.9,3.31484105]
[1735145092765,0.55,3446.9,3446.0,2.90191]
[1735145093071,0.55,3446.9,3446.1,2.90182]
[1735145093284,0.55,3446.9,3446.2,0.6216661]
[1735145093867,0.7627,3447.0,3446.3,2.90165]
[1735145096167,0.7627,3447.0,3446.4,2.90155]
[1735145098098,0.7627,3447.0,3446.2,1.19619376]
[1735145098380,2.90052,3447.7,3445.0,4.72390871]
[1735145098381,0.8293,3446.6,3445.4,3.7545]
[1735145098588,3.73079,3446.6,3445.5,1.21709264]
[1735145098879,0.8293,3446.6,3446.1,0.56700131]
[1735145099241,0.8293,3446.6,3446.1,3.46879131]
[1735145099439,0.8293,3446.6,3446.2,0.64687913]
[1735145099641,0.8293,3446.6,3446.1,3.46881131]
[1735145100690,1.3793,3447.0,3446.2,3.0]
[1735145100868,1.3793,3447.0,3446.2,2.90173]
[1735145101878,0.8293,3447.0,3446.2,3.0]
[1735145102082,0.8293,3447.0,3446.4,2.90152]
[1735145102281,0.8293,3447.0,3446.5,0.290152]
[1735145102490,0.8293,3447.0,3446.5,3.191622]
[1735145103121,0.8293,3448.2,3446.9,2.37391048]
[1735145103253,0.8293,3448.2,3447.4,2.90069]
[1735145103452,0.8293,3448.2,3447.5,2.9006]
[1735145103681,0.8293,3448.2,3447.6,0.60290105]
[1735145104349,0.8293,3448.2,3447.6,3.50346105]
[1735145105056,0.8293,3448.2,3447.7,2.37391048]
[1735145105275,0.8293,3448.2,3447.6,6.50339105]
[1735145106177,1.3105,3448.7,3447.6,6.50339105]
[1735145106491,1.3105,3448.7,3447.7,0.65033911]
[1735145106848,2.90007,3448.2,3447.6,0.60290105]
[1735145107194,0.55,3448.0,3447.0,0.7937]
[1735145107704,0.7605,3447.4,3446.7,1.21413247]
[1735145108082,1.3105,3447.1,3446.7,1.21413247]
[1735145108424,0.7605,3446.6,3446.3,1.21413247]
[1735145109566,0.7605,3446.6,3445.7,3.0]
[1735145109567,3.66191,3446.6,3445.7,3.0]
[1735145109762,3.66191,3446.6,3445.9,0.57044942]
[1735145114224,2.90157,3446.4,3445.8,0.82761505]
[1735145114428,2.90157,3446.4,3445.4,1.21413247]
[1735145114775,2.90157,3446.4,3445.8,0.5668496]
[1735145115147,0.55,3446.1,3445.4,1.21413247]
[1735145115428,3.66283,3445.5,3445.4,1.00472993]
[1735145115638,4.21283,3445.5,3445.4,1.00472993]
[1735145117093,4.21283,3445.5,3444.4,8.41535518]
[1735145117313,0.55,3445.4,3444.5,0.97132579]
[1735145117510,0.55,3445.4,3444.7,0.57518792]
[1735145119925,0.55,3445.4,3444.5,0.97132579]
[1735145120226,3.4526,3445.2,3444.3,0.0177179]
[1735145120403,3.4526,3445.2,3444.5,0.56891124]
[1735145121135,2.90195,3446.0,3444.6,0.7937]
[1735145121290,0.7605,3445.9,3445.1,2.90261]
[1735145121633,0.7605,3446.2,3445.3,0.7937]
[1735145121929,1.19071002,3446.3,3445.3,0.7937]
[1735145122159,1.19071002,3446.3,3445.9,2.90193]
[1735145122289,0.7605,3446.5,3445.8,0.56716772]
[1735145123188,0.7605,3446.5,3445.7,2.90209]
[1735145123388,0.7605,3446.5,3445.8,3.42967005]
[1735145123624,0.8105,3447.0,3445.9,0.7927]
[1735145123843,0.8105,3447.0,3446.1,3.0]
[1735145124053,0.8105,3447.0,3446.1,5.90179]
[1735145124247,0.8105,3447.0,3445.9,3.0]
[1735145124454,0.8105,3447.0,3446.0,0.70198223]
[1735145125029,0.8105,3447.0,3445.8,0.52760005]
[1735145125030,0.55,3446.7,3445.8,0.52760005]
[1735145125229,0.55,3446.9,3445.8,0.52760005]
[1735145125387,0.8105,3447.0,3446.0,2.90191]
[1735145125594,0.8105,3447.5,3446.3,2.37391048]
[1735145125904,0.8105,3447.5,3446.3,5.37391048]
[1735145126102,0.8105,3447.5,3446.7,2.37391048]
[1735145126288,2.00212388,3447.9,3446.9,2.90115]
[1735145126490,2.00212388,3447.9,3446.7,2.37391048]
[1735145126694,2.00212388,3447.9,3446.7,5.27522048]
[1735145126894,0.8105,3447.9,3446.7,5.27522048]
[1735145127130,0.8105,3447.9,3446.8,0.82752205]
[1735145127330,3.71084,3447.9,3446.8,3.72874205]
[1735145127533,0.55,3447.8,3446.8,3.72874205]
[1735145129795,0.55,3447.8,3446.8,0.82752205]
[1735145129990,0.55,3447.8,3446.9,2.90113]
[1735145130233,0.55,3447.8,3447.0,0.61025625]
[1735145131312,0.8105,3448.4,3447.3,2.90081]
[1735145131933,0.8105,3448.4,3447.5,2.90063]
[1735145132095,0.8105,3448.4,3447.4,0.59460636]
[1735145132298,0.8105,3448.4,3447.1,2.37391048]
[1735145132299,2.90007,3448.2,3447.1,5.37391048]
[1735145132641,2.90007,3448.2,3447.2,0.67768667]
[1735145133096,2.90023,3448.0,3447.1,3.0]
[1735145133298,0.55,3447.8,3447.1,0.56858216]
[1735145133642,0.55,3448.1,3447.1,2.94249264]
[1735145133798,0.55,3448.1,3447.2,0.7927]
[1735145134713,0.55,3448.1,3447.1,2.94249264]
[1735145134893,0.55,3448.1,3447.2,0.72464389]
[1735145136538,0.55,3448.1,3447.2,6.62552389]
[1735145136898,0.8105,3448.2,3447.4,3.0]
[1735145137241,0.8105,3448.2,3447.3,0.02900415]
[1735145137242,0.8105,3449.0,3447.6,0.7927]
[1735145137442,0.8105,3449.0,3448.0,2.90023]
[1735145137629,0.8105,3449.0,3448.3,2.37391048]
[1735145137833,0.8105,3449.0,3448.5,2.8998]
[1735145138219,0.8105,3449.0,3448.3,3.16661048]
[1735145138427,0.8105,3449.0,3448.4,0.31666105]
[1735145138622,0.8105,3449.0,3448.4,3.21653105]
[1735145138925,0.8105,3449.0,3448.0,3.782]
[1735145139139,0.8105,3449.0,3448.1,2.90014]
[1735145139301,0.8105,3449.0,3448.0,3.782]
[1735145139504,0.8105,3449.0,3448.4,2.89989]
[1735145140248,0.8118,3449.5,3448.6,2.89972]
[1735145140451,0.8118,3449.5,3448.7,0.289972]
[1735145141256,0.8118,3449.5,3448.7,3.68164]
[1735145141733,0.02597134,3449.4,3448.7,3.68164]
[1735145142434,0.57597134,3449.4,3448.7,0.782]
[1735145142635,0.55,3449.4,3448.5,2.89981]
[1735145142833,0.02708492,3449.3,3448.5,2.89981]
[1735145143150,0.55,3449.4,3448.6,0.90557205]
[1735145143450,0.02708492,3449.3,3448.6,0.90557205]
[1735145144052,0.55,3449.4,3448.6,0.90557205]
[1735145144212,0.02708492,3449.2,3448.6,3.80528205]
[1735145144559,0.8118,3450.8,3448.9,0.782]
[1735145144706,4.92e-06,3449.1,3449.0,15.06395968]
[1735145144911,0.7618,3450.8,3449.8,2.89871]
[1735145145106,0.7618,3450.8,3450.0,2.37391048]
[1735145145410,2.89796,3450.7,3449.7,3.0]
[1735145145611,2.89796,3450.7,3449.8,0.589887]
[1735145146952,0.55,3450.7,3449.8,0.589887]
[1735145147251,0.55,3450.7,3449.8,2.96379748]
[1735145147555,0.7618,3450.8,3449.8,2.96379748]
[1735145147715,0.7618,3450.8,3450.0,2.89849]
[1735145147916,0.7618,3450.8,3450.1,0.58622875]
[1735145148924,0.55,3450.7,3450.1,0.58622875]
[1735145149366,0.7618,3450.8,3450.1,0.58622875]
[1735145150653,0.7618,3450.8,3450.1,5.78036945]
[1735145152385,1.3618,3451.4,3450.5,2.88190945]
[1735145152590,0.8118,3451.4,3450.5,2.88190945]
[1735145153010,0.8118,3451.4,3450.5,5.78000945]
[1735145153369,0.8118,3451.4,3450.5,2.88190945]
[1735145153578,0.8118,3451.4,3450.6,0.57801894]
[1735145153960,0.8118,3451.4,3450.6,2.89803]
[1735145154290,0.8118,3451.4,3450.5,2.88190945]
[1735145154493,0.8118,3451.4,3450.7,0.58179348]
[1735145155995,0.55,3451.3,3450.7,0.58179348]
[1735145156501,0.55,3451.0,3450.2,3.0]
[1735145156702,0.55,3451.0,3450.3,1.47019095]
[1735145156878,0.55,3451.1,3450.4,0.58742281]
[1735145157757,0.7535,3451.2,3450.4,0.58742281]
[1735145158259,0.7535,3451.2,3450.6,2.89797]
[1735145158458,0.7535,3451.2,3450.7,3.53469023]
[1735145158660,0.7535,3451.2,3450.7,0.63673023]
[1735145159601,0.55,3451.4,3450.7,0.63673023]
[1735145159968,0.7535,3451.6,3450.7,0.63673023]
[1735145160509,0.55,3451.5,3450.7,0.63673023]
[1735145160714,0.7535,3451.4,3450.4,0.58742281]
[1735145161004,0.55,3451.3,3450.4,0.58742281]
[1735145161679,2.89756,3451.2,3450.4,0.58742281]
[1735145162005,0.55,3451.1,3450.4,0.58742281]
[1735145162205,0.7535,3451.4,3450.5,2.88190945]
[1735145162371,0.7535,3451.4,3450.6,0.79395232]
[1735145162821,0.7535,3451.4,3450.7,2.89788]
[1735145162987,0.7535,3451.7,3450.8,2.89785]
[1735145163567,0.7535,3451.7,3450.6,0.79395232]
[1735145163825,0.7535,3451.7,3450.8,2.89781]
[1735145163971,0.7535,3451.7,3450.9,0.36917623]
[1735145164676,0.7535,3451.7,3450.9,3.26695623]
[1735145164868,0.7535,3451.7,3450.9,4.04905623]
[1735145165982,0.7535,3451.7,3451.0,2.89762]
[1735145167274,0.7535,3451.7,3450.9,4.03318568]
[1735145167489,0.7535,3451.7,3451.0,0.69310457]
[1735145169524,0.7535,3451.7,3451.4,0.56655825]
[1735145169823,0.7577,3452.1,3451.4,3.46389825]
[1735145170189,0.7577,3452.1,3451.5,2.89727]
[1735145170614,0.7577,3452.7,3451.7,2.36805859]
[1735145170817,0.7577,3452.7,3451.8,3.34888614]
[1735145170984,0.7577,3452.7,3451.8,3.31992261]
[1735145171490,0.7577,3452.7,3451.9,2.8969]
[1735145172118,0.7577,3452.7,3452.0,2.89684]
[1735145172433,0.7577,3452.7,3452.1,2.36805859]
[1735145172727,0.7577,3452.7,3452.2,0.53680586]
[1735145173490,1.3077,3453.1,3452.2,0.53680586]
[1735145174293,0.7577,3453.1,3452.3,0.02896136]